Workbook

Sheet Main
A1: Stage | B1: Parameter | C1: Symbol | D1: Unit | E1: Value
B2: Frequency | D2: GHz | E2: 28
B3: Bandwidth | D3: MHz | E3: 800
A4: DUT
B5: Equivalent Isotropically Radiated Power | C5: EIRP | D5: dBm | E5: 30
B6: Tx SNR | C6: SNR_In | D6: dB | E6: 114.9691001
A7: OTA
B8: Distance | C8: d | D8: m | E8: 1
B9: Free Space Path Loss | C9: FSPL | D9: dB | E9: =20*LOG10((4*PI()*E2*1000000000*E8)/300000000) -> 61.38493281
A10: Rx Antenna
B11: Antenna Gain | C11: G_Rx | D11: dBi | E11: 10
A12: LNA
B13: Gain | C13: G_LNA | D13: dB | E13: 15
B14: Noise Figure | C14: NF_LNA | D14: dB | E14: 2
A15: Rx Cable
B16: Cable Loss | C16: A_Rx | D16: dB | E16: 4
A17: Receiver
B18: DANL | C18: DANL_RX | D18: dBm/Hz | E18: -144
A23: Results
B24: Rx Power | C24: P_Rx | D24: dBm | E24: -10.38493347
B25: Rx Noise Power | C25: N_Rx | D25: dBm | E25: -54.42734528
B26: Rx SNR | C26: SNR_Rx | D26: dB | E26: 44.0424118
B28: Total Gain | C28: G_tot | D28: dB | E28: -40.38493281
B29: Total Noise Figure | C29: NF_tot | D29: dB | E29: 70.92668682
B31: Target System SNR | D31: dB | E31: 40
B32: Resulting Margin | D32: dB | E32: 4.042411804
B38: Antenna Parameters
B39: Aperture Diagonal | C39: D | D39: m | E39: 0.033
B40: Wavelength | C40: l | D40: m | E40: =300000000/(E2*1000000000) -> 0.01071428571
B41: Far Field Distance | C41: d_f | D41: m | E41: =(2*E39^2)/E40 -> 0.20328

Sheet Horn Calculator
A1: Source: Balanis, "Modern Antenna Handbook", p.118-119
A3: Inputs: | C3: WR-28 | D3: WR-22 | E3: WR-19 | F3: WR-15 | G3: WR-12 | H3: WR-10 | L3: Waveguide Frequency Ranges, Dimensions and Designations
A4: Frequency Range | B4: GHz | C4: 26,5 - 40 | D4: 33 - 50 | E4: 40 - 60 | F4: 50 - 75 | G4: 60 - 90 | H4: 75 - 110 | L4: Range | M4: Internal | N4: Internal | O4: Official Designations
A5: Waveguide width | B5: a [m] | C5: 0.0071 | D5: 0.0057 | E5: 0.0048 | F5: 0.0038 | G5: 0.0031 | H5: 0.0038 | L5: GHz | M5: (inches) | N5: (mm. approx) | O5: I.E.C. | P5: U.K. (RCSR) | Q5: U.S. (EIA)
A6: Waveguide height | B6: b [m] | C6: 0.0036 | D6: 0.0029 | E6: 0.0024 | F6: 0.0019 | G6: 0.00155 | H6: 0.0019 | L6: 8.2 - 12.4 | M6: 0.9 x 0.4 | N6: 23.0 x 10.0 | O6: R100 | P6: WG16 | Q6: WR90
A7: Target gain | B7: G_dBi [dBi] | C7: 15 | D7: 20 | E7: 20 | F7: 15 | G7: 20 | H7: 20 | L7: 10.0 - 15.0 | M7: 0.75 x 0.375 | N7: 19.0 x 9.5 | O7: R120 | P7: WG17 | Q7: WR75
A8: Frequency | B8: f [GHz] | C8: 28 | D8: 42 | E8: 50 | F8: 62 | G8: 86 | H8: 92 | L8: 12.4 - 18.0 | M8: 0.622 x 0.311 | N8: 16.0 x 7.9 | O8: R140 | P8: WG18 | Q8: WR62
A9: Outputs: | L9: 15.0 - 22.0 | M9: 0.510 x 0.255 | N9: 13.0 x 5.8 | O9: R180 | P9: WG19 | Q9: WR51
A10: Gain linear | B10: G_l [i] | C10: =10^(C7/10) -> 31.6227766 | D10: 100 | E10: 100 | F10: 31.6227766 | G10: 100 | H10: 100 | L10: 18.0 - 26.5 | M10: 0.420 x 0.170 | N10: 11.0 x 4.3 | O10: R220 | P10: WG20 | Q10: WR42
A11: Free-space wavelength | B11: lambda_0 [m] | C11: =300000000/C8/1000000000 -> 0.01071428571 | D11: 0.007142857143 | E11: 0.006 | F11: 0.004838709677 | G11: 0.003488372093 | H11: 0.003260869565 | L11: 22.0 - 33.0 | M11: 0.340 x 0.170 | N11: 8.6 x 4.3 | O11: R260 | P11: WG21 | Q11: WR34
A12: Aperture width | B12: A [m] | C12: =0.096*C5*(C10^0.232)+0.42*C11*(C10^0.503)-0.193*C6 -> 0.02639302902 | D12: 0.03145038598 | E12: 0.02642862537 | F12: 0.01199349078 | G12: 0.01542206018 | H12: 0.01458130728 | L12: 26.5 - 40.0 | M12: 0.280 x 0.140 | N12: 7.1 x 3.6 | O12: R320 | P12: WG22 | Q12: WR28
B13: R_H [m] | C13: =C12*SQRT(1/4+(C12/3/C11)^2) -> 0.02537346578 | D13: 0.04876431095 | E13: 0.04099231032 | F13: 0.01158248732 | G13: 0.02399944217 | H13: 0.02292416403 | L13: 33.0 - 50.0 | M13: 0.224 x 0.112 | N13: 5.7 x 2.9 | O13: R400 | P13: WG23 | Q13: WR22
B14: L_H [m] | C14: =(C12-C5)*SQRT((C13/C12)^2-0.25) -> 0.01584182366 | D14: 0.03779344698 | E14: 0.03175637984 | F14: 0.006769611641 | G14: 0.01815857069 | H14: 0.01606990111 | L14: 40.0 - 60.0 | M14: 0.188 x 0.094 | N14: 4.8 x 2.4 | O14: R500 | P14: WG24 | Q14: WR19
B15: D_H [m] | C15: =SQRT(C13^2-(C12/2)^2) -> 0.02167175051 | D15: 0.04615924965 | E15: 0.03880401327 | F15: 0.009909241004 | G15: 0.02272692762 | H15: 0.02173392891 | L15: 50.0 - 75.0 | M15: 0.148 x 0.074 | N15: 3.8 x 1.9 | O15: R620 | P15: WG25 | Q15: WR15
A16: Aperture height | B16: B [m] | C16: =0.5*(C6+SQRT(C6^2+8*C14*C11)) -> 0.02031236478 | D16: 0.02473108428 | E16: 0.02075803053 | F16: 0.009099531932 | G16: 0.01205721288 | H16: 0.01123135219 | L16: 60.0 - 90.0 | M16: 0.122 x 0.061 | N16: 3.1 x 1.6 | O16: R740 | P16: WG26 | Q16: WR12
B17: R_E [m] | C17: =C16/2*SQRT(1+(C16/C11)^2) -> 0.02176869646 | D17: 0.04456380809 | E17: 0.03737790005 | F17: 0.009690620507 | G17: 0.02169185089 | H17: 0.0201406941 | L17: 75.0 - 110.0 | M17: 0.100 x 0.050 | N17: 2.4 x 1.3 | O17: R900 | P17: WG27 | Q17: WR10
B18: L_E [m] | C18: =(C16-C6)*SQRT((C17/C16)^2-0.25) -> 0.01584182366 | D18: 0.03779344698 | E18: 0.03175637984 | F18: 0.006769611641 | G18: 0.01815857069 | H18: 0.01606990111 | L18: 90.0 - 140.0 | M18: 0.080 x 0.040 | N18: 2.0 x 1.0 | O18: R1200 | P18: WG28 | Q18: WR8
B19: D_E [m] | C19: =SQRT(C17^2-(C16/2)^2) -> 0.01925430094 | D19: 0.04281385709 | E19: 0.03590798594 | F19: 0.008556153077 | G19: 0.02083728148 | H19: 0.01934196838 | L19: 110.0 - 170.0 | M19: 0.065 x 0.0325 | N19: 1.7 x 0.82 | P19: WG29 | Q19: WR7
A20: Aperture diagonal | B20: D [m] | C20: =SQRT(C12^2+C16^2) -> 0.03330441628 | D20: 0.04000941524 | E20: 0.03360607192 | F20: 0.01505474352 | G20: 0.0195759118 | H20: 0.01840537405 | L20: 140.0 - 220.0 | M20: 0.051 x 0.0255 | N20: 1.3 x 0.65 | P20: WG30 | Q20: WR5
L21: 170.0 - 260.0 | M21: 0.043 x 0.0215 | N21: 1.1 x 0.55 | P21: WG31 | Q21: WR4
L22: 220.0 - 325.0 | M22: 0.034 x 0.017 | N22: 0.87 x 0.44 | P22: WG32 | Q22: WR3

Sheet Calculations
A1: Stage | B1: Pout | C1: Limit | D1: Nsys | E1: SNR
A2: DUT | B2: 30 | C2: -10 | D2: -84.96910013 | E2: 114.9691001
A3: OTA path | B3: -31.38493347 | C3: -71.38493347 | D3: -84.96910095 | E3: 53.58416748
A4: Rx Antenna | B4: -21.38493347 | C4: -61.38493347 | D4: -74.96910095 | E4: 53.58416748
A5: LNA | B5: -6.384933472 | C5: -46.38493347 | D5: -59.72223663 | E5: 53.33730316
A6: Rx Cable | B6: -10.38493347 | C6: -50.38493347 | D6: -63.70266724 | E6: 53.31773376
A7: Receiver | B7: -10.38493347 | C7: -50.38493347 | D7: -54.42734528 | E7: 44.0424118
B8: 1.995201111 | C8: -33.00479889 | D8: -37.5200386 | E8: 39.51523972
